bitfinex-derivatives/quotes_BTCF0:USTF0_20250308
["timestamp","ask_amount","ask_price","bid_price","bid_amount"]
[1741401920606,0.0580956,86089.0,86083.0,0.00868268]
[1741401920607,0.1161981,86084.0,86083.0,0.00868268]
[1741401920807,0.0959,86084.0,86081.0,0.00174258]
[1741401921010,0.1162048,86079.0,86078.0,0.0001742]
[1741401921407,0.3608,86082.0,86060.0,0.09090942]
[1741401921408,0.0581115,86066.0,86060.0,0.09090942]
[1741401921609,0.1162332,86058.0,86057.0,0.0971]
[1741401921816,0.1162316,86060.0,86057.0,0.09724598]
[1741401922008,0.0951,86059.0,86057.0,0.16632014]
[1741401922216,0.0581197,86054.0,86050.0,0.90478681]
[1741401922430,0.4770426,86051.0,86050.0,0.90184387]
[1741401922712,0.4770426,86051.0,86050.0,0.90201817]
[1741401923419,0.6270426,86051.0,86050.0,0.90201817]
[1741401923619,0.62715316,86051.0,86050.0,0.75201817]
[1741401924011,0.62715316,86051.0,86050.0,0.30211817]
[1741401924217,0.51091056,86051.0,86038.0,0.00011039]
[1741401924517,0.1162602,86038.0,86037.0,0.23582214]
[1741401924708,0.1970202,86038.0,86037.0,0.23582214]
[1741401925120,0.1970202,86038.0,86037.0,0.24442819]
[1741401925822,0.1970202,86038.0,86037.0,0.00860605]
[1741401926023,0.116267,86033.0,86032.0,0.1846]
[1741401927514,0.116267,86033.0,86032.0,0.12674905]
[1741401927718,0.252567,86033.0,86032.0,0.12674905]
[1741401928620,0.116267,86033.0,86032.0,0.12674905]
[1741401929021,0.116267,86033.0,86032.0,0.22254905]
[1741401929321,0.116267,86033.0,86032.0,0.23107927]
[1741401929731,0.3608,86055.0,86032.0,0.24467698]
[1741401929922,0.0808,86045.0,86033.0,0.01359771]
[1741401930128,0.1162617,86037.0,86034.0,0.01359771]
[1741401930430,0.1162608,86038.0,86034.0,0.07669312]
[1741401930634,0.1162608,86038.0,86035.0,0.1872]
[1741401930941,0.1162629,86036.0,86035.0,0.1872]
[1741401931630,0.09316336,86062.0,86035.0,0.1872]
[1741401931834,0.0020202,90729.0,86035.0,0.1872]
[1741401931835,0.05812,86053.0,86038.0,0.3608]
[1741401932031,0.116247,86048.0,86040.0,0.13972005]
[1741401932232,0.116247,86048.0,86041.0,0.0965]
[1741401932737,0.0808,86067.0,86047.0,0.0581238]
[1741401932935,0.00064,86055.0,86054.0,0.13972005]
[1741401933136,0.3609743,86064.0,86054.0,0.3608]
[1741401933436,0.00064,86072.0,86063.0,0.1162264]
[1741401933743,0.1161928,86088.0,86074.0,0.1162115]
[1741401934038,0.00011553,86087.0,86071.0,0.4189076]
[1741401934233,0.1161965,86086.0,86075.0,0.12696183]
[1741401934435,0.00011553,86087.0,86075.0,0.12696183]
[1741401934635,0.1161994,86083.0,86072.0,0.24317593]
[1741401934834,0.1161969,86085.0,86073.0,0.1162116]
[1741401935236,0.1161969,86085.0,86073.0,0.24411335]
[1741401936136,0.0001743,86086.0,86083.0,0.1161994]
[1741401936532,0.0001743,86086.0,86083.0,0.19269383]
[1741401938033,0.0001743,86086.0,86083.0,0.13434538]
[1741401938228,0.0001743,86086.0,86079.0,0.0901]
[1741401938229,0.05984217,86084.0,86079.0,0.0901]
[1741401938448,0.1162035,86080.0,86079.0,0.0901]
[1741401939742,0.1162035,86080.0,86079.0,0.03224905]
[1741401939942,0.1162035,86080.0,86074.0,0.00012065]
[1741401940237,0.1162102,86075.0,86074.0,0.00881193]
[1741401942730,0.116219,86069.0,86064.0,0.04733528]
[1741401943335,0.3608,86081.0,86070.0,0.0581083]
[1741401943543,0.0001743,86086.0,86075.0,0.1162095]
[1741401943738,0.0001743,86086.0,86081.0,0.1162021]
[1741401943939,0.0001743,86086.0,86082.0,0.00012649]
[1741401944133,0.0001743,86086.0,86082.0,0.09262649]
[1741401944330,0.0001743,86086.0,86083.0,0.23780448]
[1741401944535,0.0001743,86086.0,86083.0,0.33030448]
[1741401945241,0.0001743,86086.0,86085.0,0.1161967]
[1741401945443,0.0001743,86086.0,86083.0,0.27220438]
[1741401945444,0.08076,86108.0,86097.0,0.1161795]
[1741401945639,0.1161693,86106.0,86098.0,0.1743691]
[1741401945845,0.0580824,86109.0,86098.0,0.39474176]
[1741401946041,0.00174256,86117.0,86098.0,0.39474176]
[1741401946240,0.00174256,86117.0,86108.0,0.1161649]
[1741401946435,0.00174256,86117.0,86109.0,0.1161634]
[1741401946636,0.00174256,86117.0,86109.0,0.12817266]
[1741401946846,0.1161555,86116.0,86109.0,0.12817266]
[1741401947037,0.1161603,86112.0,86109.0,0.03490723]
[1741401947344,0.1161603,86112.0,86107.0,0.13972005]
[1741401947345,0.1161577,86114.0,86107.0,0.13972005]
[1741401947547,0.00174256,86117.0,86110.0,0.13356339]
[1741401947733,0.1161616,86111.0,86110.0,0.13356339]
[1741401947933,0.00374256,86117.0,86109.0,0.13356339]
[1741401948239,0.00374256,86117.0,86110.0,0.1161618]
[1741401948240,0.002,86112.0,86110.0,0.1161618]
[1741401948435,0.002,86112.0,86111.0,0.1161616]
[1741401948643,0.002,86112.0,86111.0,0.41905168]
[1741401948842,0.002,86112.0,86111.0,0.64451094]
[1741401949542,0.005,86112.0,86111.0,0.64451094]
[1741401950142,0.005,86112.0,86012.0,0.3608]
[1741401950143,0.5811519,86061.0,86012.0,0.3608]
[1741401950348,0.5809245,86094.0,86013.0,0.0963]
[1741401950349,0.7216,86018.0,86013.0,0.0963]
[1741401950542,0.7216,86018.0,86014.0,0.0899]
[1741401950743,0.1162913,86015.0,86014.0,0.0899]
[1741401950937,0.1162913,86015.0,86014.0,0.1862]
[1741401951138,0.1162913,86015.0,86014.0,0.31939976]
[1741401951338,0.1162913,86015.0,86014.0,0.3195015]
[1741401951546,0.1162913,86015.0,86014.0,0.18630174]
[1741401951742,0.1162913,86015.0,86014.0,0.12839182]
[1741401952748,0.1152913,86015.0,86014.0,0.12839182]
[1741401953448,0.1152913,86015.0,86014.0,0.12939182]
[1741401953847,0.1152913,86015.0,86014.0,0.13039182]
[1741401954746,0.1152913,86015.0,86014.0,0.0724819]
[1741401955540,0.1152913,86015.0,86014.0,0.08125393]
[1741401955740,0.1152913,86015.0,86014.0,0.0724819]
[1741401957848,0.1152913,86015.0,86014.0,0.01457198]
[1741401958747,0.78034401,86018.0,86000.0,0.10202286]
[1741401958748,0.1163102,86001.0,86000.0,0.10202286]
[1741401958951,0.4771102,86001.0,86000.0,0.10202286]
[1741401959152,0.4771102,86001.0,86000.0,0.23619868]
[1741401959755,0.4771102,86001.0,86000.0,0.23631728]
[1741401959954,0.4771102,86001.0,86000.0,0.24520177]
[1741401960148,0.4771102,86001.0,86000.0,0.24620177]
[1741401960448,0.4771102,86001.0,86000.0,0.24517891]
[1741401960858,0.4771102,86001.0,86000.0,0.18726899]
[1741401961847,0.3608,86001.0,86000.0,0.18726899]
[1741401962248,0.4771102,86001.0,86000.0,0.1783845]
[1741401963144,0.3608,86001.0,86000.0,0.1783845]
[1741401963455,0.24930279,86003.0,86000.0,0.1783845]
[1741401963848,0.24930279,86003.0,86000.0,0.12047458]
[1741401964957,0.24930279,86003.0,86000.0,0.11947458]
[1741401965148,0.24930279,86003.0,86000.0,0.12047458]
[1741401965552,0.24930279,86003.0,86000.0,0.11947458]
[1741401966459,0.24930279,86003.0,86001.0,0.1916]
[1741401966854,0.24930279,86003.0,86002.0,0.12516033]
[1741401967455,0.24930279,86003.0,86002.0,0.22026033]
[1741401967958,0.24930279,86003.0,86002.0,0.0951]
[1741401968159,0.24930279,86003.0,86002.0,0.22769891]
[1741401968357,0.24930279,86003.0,86002.0,0.22869891]
[1741401969853,0.1163013,86008.0,86002.0,0.22869891]
[1741401970048,0.7216,86004.0,86003.0,0.0949]
[1741401970470,0.7216,86004.0,86003.0,0.22666961]
[1741401971360,0.8379062,86004.0,86003.0,0.22766961]
[1741401971560,0.8379062,86004.0,86003.0,0.13276961]
[1741401971757,0.8379062,86004.0,86003.0,0.001]
[1741401971953,1.0268062,86004.0,86003.0,0.001]
[1741401972957,0.9105,86004.0,85991.0,0.03490868]
[1741401973161,0.4771224,85992.0,85991.0,0.03490868]
[1741401973460,0.4761224,85992.0,85991.0,0.03490868]
[1741401974167,0.4761224,85992.0,85991.0,0.27571803]
[1741401974168,0.18241285,85992.0,85991.0,0.27571803]
[1741401974561,0.18241285,85992.0,85991.0,0.311533]
[1741401976058,0.18241285,85992.0,85991.0,0.27110308]
[1741401976259,0.00017442,86000.0,85999.0,0.1163129]
[1741401976766,0.00017442,86000.0,85999.0,0.2480728]
[1741401977167,0.00017442,86000.0,85999.0,0.24822373]
[1741401977669,0.36097442,86000.0,85999.0,0.24822373]
[1741401979166,0.36097442,86000.0,85999.0,0.28931381]
[1741401979368,0.00017442,86000.0,85999.0,0.28931381]
[1741401979559,0.36097442,86000.0,85999.0,0.28931381]
[1741401980161,0.36140001,86010.0,86006.0,0.1163025]
[1741401980366,0.3608,86010.0,86007.0,0.1908]
[1741401980568,0.3608,86010.0,86007.0,0.31970666]
[1741401981374,0.29542081,86010.0,86007.0,0.31970666]
[1741401982166,0.29542081,86010.0,86007.0,0.26179674]
[1741401982365,0.0948,86009.0,86007.0,0.26179674]
[1741401983373,0.3608,86020.0,86016.0,0.1162899]
[1741401983568,0.29273022,86020.0,86019.0,0.1162859]
[1741401984067,0.29273022,86020.0,86019.0,0.24846466]
[1741401984269,0.29273022,86020.0,86019.0,0.22907876]
[1741401984474,0.40901472,86020.0,86019.0,0.22907876]
[1741401984673,0.40901472,86020.0,86019.0,0.13217876]
[1741401985064,0.40901472,86020.0,86019.0,0.07426884]
[1741401985669,0.1162981,86010.0,86009.0,0.0969]
[1741401985875,0.4770981,86010.0,86009.0,0.0969]
[1741401986079,0.4770981,86010.0,86009.0,0.21916832]
[1741401986479,0.1162978,86011.0,86009.0,0.21916832]
[1741401986772,0.3089981,86010.0,86009.0,0.21916832]
[1741401987379,0.5535,86010.0,86009.0,0.21916832]
[1741401988177,0.5535,86010.0,86009.0,0.1612584]
[1741401988480,0.1927,86010.0,86009.0,0.1612584]
[1741401990173,0.5535,86010.0,86009.0,0.1612584]
[1741401990377,0.1927,86010.0,86009.0,0.1612584]
[1741401990578,0.5535,86010.0,86009.0,0.1612584]
[1741401991174,0.5535,86010.0,86009.0,0.10334848]
[1741401992382,0.5535,86010.0,86009.0,0.21964788]
[1741401992383,0.1927,86010.0,86009.0,0.21964788]
[1741401992675,0.1927,86010.0,86009.0,0.2282901]
[1741401993481,0.1927,86010.0,86009.0,0.1119907]
[1741401994066,0.1927,86010.0,86009.0,0.2282901]
[1741401994271,0.0976,86010.0,86009.0,0.17038018]
[1741401994503,8.982e-05,86022.0,86009.0,0.11223038]
[1741401994683,0.0959,86021.0,86015.0,0.1162905]
[1741401994978,0.0958,86020.0,86016.0,0.0916]
[1741401995178,0.0958,86020.0,86019.0,0.1162859]
[1741401995377,8.982e-05,86022.0,86019.0,0.0017]
[1741401995592,8.982e-05,86022.0,86021.0,0.1162832]
[1741401995975,8.982e-05,86022.0,86021.0,0.24745183]
[1741401996680,0.1861,86027.0,86022.0,0.1162818]
[1741401996976,0.10424593,86036.0,86026.0,0.1162764]
[1741401997171,0.10424593,86036.0,86027.0,0.14996518]
[1741401997172,0.1861,86035.0,86027.0,0.14996518]
[1741401997372,0.1861,86035.0,86027.0,0.27626651]
[1741401997573,0.1861,86035.0,86027.0,0.3048064]
[1741401999074,0.1861,86035.0,86034.0,0.1162656]
[1741401999268,0.0958,86035.0,86034.0,0.1162656]
[1741401999483,0.0958,86035.0,86034.0,0.13315359]
[1741402000181,0.0958,86035.0,86032.0,0.1162678]
[1741402000484,0.0939,86034.0,86030.0,0.0581351]
[1741402000673,0.0914,86033.0,86030.0,0.174405]
[1741402000869,0.3608,86031.0,85980.0,0.03104032]
[1741402001175,0.1163941,85939.0,85930.0,0.0921]
[1741402001373,0.3608,85982.0,85929.0,0.14028339]
[1741402001374,0.3608,85936.0,85929.0,0.13239004]
[1741402001575,0.3608,85936.0,85934.0,0.02340093]
[1741402001779,0.4510233,85936.0,85935.0,0.03699991]
[1741402002083,0.41466798,85936.0,85935.0,0.18148094]
[1741402002279,0.41466798,85936.0,85935.0,0.15808001]
[1741402002479,0.41366798,85936.0,85935.0,0.15808001]
[1741402002683,0.41366798,85936.0,85935.0,0.1210801]
[1741402002980,0.41379101,85936.0,85935.0,0.1210801]
[1741402003178,0.1164036,85932.0,85931.0,8.927e-05]
[1741402003373,0.1164036,85932.0,85931.0,0.07456939]
[1741402003568,0.1164036,85932.0,85931.0,0.22849736]
[1741402004272,0.1164036,85932.0,85931.0,0.22863628]
[1741402004679,0.3028036,85932.0,85931.0,0.22863628]
[1741402004874,0.1864,85932.0,85931.0,0.22863628]
[1741402006267,0.3028036,85932.0,85931.0,0.17072636]
[1741402006976,0.1864,85932.0,85931.0,0.17072636]
[1741402007381,0.04282912,85932.0,85931.0,0.17072636]
[1741402007580,0.29349005,85936.0,85935.0,0.02340093]
[1741402007787,0.39179005,85936.0,85935.0,0.02340093]
[1741402008083,0.39179005,85936.0,85935.0,0.16209104]
[1741402009386,0.39179005,85936.0,85935.0,0.10418112]
[1741402010683,0.48569005,85936.0,85935.0,0.10418112]
[1741402012378,0.48569005,85936.0,85935.0,0.0462712]
[1741402013588,0.29349005,85936.0,85935.0,0.1626708]
[1741402013792,0.29349005,85936.0,85935.0,0.0462712]
[1741402014492,0.26944397,85936.0,85935.0,0.0462712]
[1741402014888,0.26944397,85936.0,85935.0,0.2433712]
[1741402015087,0.00017455,85944.0,85936.0,0.0581991]
[1741402015286,0.00017455,85944.0,85935.0,0.2440112]
[1741402015480,0.116395,85939.0,85937.0,0.12132695]
[1741402015684,0.1923,85938.0,85937.0,0.12132695]
[1741402016086,0.5531,85938.0,85937.0,0.01748]
[1741402016391,0.5531,85938.0,85937.0,0.14687107]
[1741402016586,0.5531,85938.0,85937.0,0.01748]
[1741402016983,0.5531,85938.0,85937.0,0.14687107]
[1741402018688,0.5531,85938.0,85937.0,0.08896115]
[1741402021693,0.5531,85938.0,85937.0,0.03105123]
[1741402021895,0.5531,85938.0,85937.0,0.12495123]
[1741402022485,0.3608,85938.0,85937.0,0.24134803]
[1741402022790,0.3608,85938.0,85937.0,0.34084803]
[1741402022991,0.3608,85938.0,85937.0,0.22445123]
[1741402023485,0.0942,85942.0,85939.0,0.0581966]
[1741402023793,0.0942,85942.0,85941.0,0.1163914]
[1741402023989,0.3608,85966.0,85946.0,0.0581922]
[1741402024292,0.0942,85965.0,85957.0,0.0581845]
[1741402024497,0.1919,85965.0,85960.0,0.05845498]
[1741402024683,0.1919,85965.0,85963.0,0.116361]
[1741402024887,0.1919,85965.0,85964.0,0.0987]
[1741402025197,0.1919,85965.0,85964.0,0.23003376]
[1741402025588,0.1919,85965.0,85964.0,0.34639406]
[1741402026194,0.1919,85965.0,85964.0,0.37489545]
[1741402026383,0.00028077,85973.0,85964.0,0.25853515]
[1741402026590,0.05687,85972.0,85971.0,0.1163508]
[1741402027093,0.00028077,85973.0,85972.0,0.12203358]
[1741402027296,0.00028077,85973.0,85972.0,0.21513358]
[1741402027687,0.00028077,85973.0,85955.0,0.00017455]
[1741402027892,0.4771711,85956.0,85955.0,0.00017455]
[1741402029799,0.5710711,85956.0,85955.0,0.00017455]
[1741402030602,0.4547,85956.0,85944.0,0.70286729]
[1741402030801,0.3608,85945.0,85944.0,0.70286729]
[1741402031000,0.3608,85945.0,85944.0,0.79936729]
[1741402031197,0.3608,85945.0,85944.0,0.12954654]
[1741402031389,0.3608,85945.0,85944.0,0.15725401]
[1741402031590,0.3608,85945.0,85944.0,0.02770747]
[1741402031802,0.3608,85945.0,85943.0,0.0987]
[1741402031988,0.3608,85945.0,85944.0,0.12954654]
[1741402032392,0.3608,85945.0,85944.0,0.02850989]
[1741402032593,0.0922,85948.0,85943.0,0.0987]
[1741402032900,0.0922,85948.0,85944.0,0.13200363]
[1741402033103,0.3608,85945.0,85944.0,0.13200363]
[1741402033696,0.0922,85948.0,85944.0,0.02870318]
[1741402033993,0.3608,85963.0,85948.0,0.1163813]
[1741402033994,0.1163648,85961.0,85948.0,0.1163813]
[1741402034192,0.1163648,85961.0,85944.0,0.0369]
[1741402034193,0.0984,85958.0,85944.0,0.16682571]
[1741402034394,0.1929,85955.0,85949.0,0.12992571]
[1741402034598,0.1929,85955.0,85950.0,0.1163783]
[1741402034899,0.0808,85971.0,85955.0,0.1163725]
[1741402035088,0.00017455,85961.0,85955.0,0.1163725]
[1741402035498,0.00017455,85961.0,85955.0,0.24120137]
[1741402035693,0.00017455,85961.0,85956.0,0.1163702]
[1741402035898,0.00017455,85961.0,85955.0,0.24120137]
[1741402036095,0.00017455,85961.0,85955.0,0.1163725]
[1741402036294,0.00017455,85961.0,85957.0,0.13008021]
[1741402036495,0.00017455,85961.0,85957.0,0.1163686]
[1741402036698,0.00017455,85961.0,85957.0,0.05845868]
[1741402037000,0.00017455,85961.0,85958.0,0.13008021]
[1741402037497,0.0983,85966.0,85958.0,0.13008021]
[1741402037892,0.0979,85965.0,85958.0,0.13008021]
[1741402038806,0.3608,85971.0,85961.0,0.1163641]
[1741402039104,0.09807455,85970.0,85963.0,0.1163611]
[1741402039306,0.19127455,85970.0,85963.0,0.1163611]
[1741402039501,0.09807455,85970.0,85965.0,0.1163589]
[1741402039802,0.00017455,85970.0,85969.0,0.05844358]
[1741402040195,0.00017455,85970.0,85969.0,0.18086799]
[1741402040799,0.00017455,85970.0,85969.0,0.12242441]
[1741402040997,0.11652675,85970.0,85969.0,0.12242441]
[1741402041500,0.18917455,85970.0,85958.0,0.0928]
[1741402041698,0.3608,85960.0,85958.0,0.0928]
[1741402041900,0.189,85959.0,85958.0,0.0928]
[1741402042099,0.189,85959.0,85957.0,0.13126161]
[1741402042297,0.1163684,85958.0,85953.0,0.00017455]
[1741402042500,0.1163738,85954.0,85953.0,0.00017455]
[1741402042902,0.1163913,85942.0,85937.0,0.10241894]
[1741402043205,0.3608,85939.0,85937.0,0.10241894]
[1741402043398,0.0995,85938.0,85937.0,0.10241894]
[1741402043599,0.1967,85938.0,85937.0,0.10241894]
[1741402043800,0.1967,85938.0,85937.0,0.2257844]
[1741402044097,0.00017455,85946.0,85937.0,0.3232844]
[1741402044306,0.00017455,85946.0,85942.0,0.1163891]
[1741402044503,0.00017455,85946.0,85943.0,0.2138884]
[1741402044711,0.00017455,85946.0,85943.0,0.34897714]
[1741402045203,0.00017455,85946.0,85943.0,0.23258874]
[1741402046008,0.00017455,85946.0,85944.0,0.05847618]
[1741402046199,0.00017455,85946.0,85944.0,0.15137618]
[1741402046399,0.00017455,85946.0,85945.0,0.22847527]
[1741402047696,0.3608,85950.0,85945.0,0.22847527]
[1741402048101,0.1909,85949.0,85946.0,0.0911]
[1741402048602,0.1909,85949.0,85947.0,0.22406459]
[1741402048908,0.1909,85949.0,85947.0,0.16615467]
[1741402049107,0.1909,85949.0,85948.0,0.2074819]
[1741402049509,0.5517,85949.0,85948.0,0.22183105]
[1741402051610,0.5517,85949.0,85948.0,0.13073105]
[1741402051804,0.1163841,85947.0,85931.0,0.00013892]
[1741402052000,0.195,85946.0,85935.0,0.1163991]
[1741402052204,0.195,85946.0,85931.0,0.00013892]
[1741402052205,0.116387,85945.0,85941.0,0.13272547]
[1741402052604,0.2004,85944.0,85938.0,0.13272547]
[1741402052805,0.3608,85941.0,85937.0,0.1239093]
[1741402053105,0.1922,85940.0,85939.0,0.12796193]
[1741402053502,0.1922,85940.0,85938.0,0.12796193]
[1741402053697,0.1922,85940.0,85937.0,0.1239093]
[1741402054008,0.1922,85940.0,85938.0,0.12796193]
[1741402054412,0.1922,85940.0,85938.0,0.22656193]
[1741402055110,0.1922,85940.0,85938.0,0.16865201]
[1741402056702,0.1922,85940.0,85938.0,0.07005201]
[1741402057304,0.099,85940.0,85939.0,0.1163941]
[1741402057504,0.07358335,85940.0,85939.0,0.4107941]
[1741402057704,0.0984,85947.0,85946.0,0.1163847]
[1741402058211,0.0984,85947.0,85946.0,0.18547671]
[1741402058408,0.0984,85947.0,85946.0,0.12700193]
[1741402058811,0.0984,85947.0,85946.0,0.1983]
[1741402059205,0.0984,85947.0,85946.0,0.32260438]
[1741402059401,0.3608,85951.0,85946.0,0.32260438]
[1741402059613,0.3608,85951.0,85949.0,0.1163797]
[1741402059815,0.3608,85951.0,85950.0,0.1939]
[1741402060021,0.3608,85951.0,85950.0,0.36181196]
[1741402060417,0.3608,85951.0,85950.0,0.23750758]
[1741402060817,0.3608,85951.0,85950.0,0.36809295]
[1741402061007,0.3608,85951.0,85950.0,0.31018303]
[1741402063611,0.3608,85951.0,85950.0,0.17419295]
[1741402063810,0.4771779,85951.0,85950.0,0.17419295]
[1741402064106,0.4771779,85951.0,85950.0,0.11628303]
[1741402065308,0.3608,85951.0,85950.0,0.11628303]
[1741402065711,0.5494,85951.0,85950.0,0.11628303]
[1741402066217,0.4565,85951.0,85950.0,0.23266223]
[1741402066712,0.4565,85951.0,85950.0,0.11628303]
[1741402067219,0.4565,85951.0,85950.0,0.05837311]
[1741402067720,0.0957,85951.0,85950.0,0.17475231]
[1741402067915,0.0929,85956.0,85950.0,0.17475231]
[1741402067916,0.3608,85953.0,85950.0,0.17475231]
[1741402068118,0.096,85955.0,85951.0,0.1955]
[1741402068322,0.096,85952.0,85951.0,0.1955]
[1741402068819,0.096,85952.0,85951.0,0.3215242]
[1741402070222,0.096,85952.0,85951.0,0.26361428]
[1741402070424,0.096,85952.0,85951.0,0.2252242]
[1741402071816,0.4568,85952.0,85951.0,0.2252242]
[1741402073318,0.4568,85952.0,85951.0,0.16731428]
[1741402073927,0.096,85952.0,85951.0,0.16731428]
[1741402074526,0.1889,85952.0,85951.0,0.16731428]
[1741402076227,0.1889,85952.0,85951.0,0.10940436]
[1741402079433,0.1889,85952.0,85951.0,0.05149444]
[1741402082426,0.1889,85952.0,85948.0,0.21226642]
[1741402082626,0.1889,85952.0,85951.0,0.13132004]
[1741402082826,0.1889,85952.0,85949.0,0.13132004]
[1741402083231,0.1889,85952.0,85948.0,0.1163819]
[1741402083430,0.1889,85952.0,85949.0,0.12513901]
[1741402084125,0.1889,85952.0,85947.0,0.69610247]
[1741402084326,0.1889,85952.0,85948.0,0.12513901]
[1741402084525,0.1889,85952.0,85947.0,0.69542247]
[1741402084526,0.1889,85952.0,85947.0,0.69610247]
[1741402084836,0.1889,85952.0,85948.0,0.13492209]
[1741402085226,0.1889,85952.0,85948.0,0.07701217]
[1741402085629,0.1889,85952.0,85948.0,0.16921217]
[1741402086435,0.1889,85952.0,85948.0,0.07701217]
[1741402087221,0.1889,85952.0,85948.0,0.19339347]
[1741402087429,0.1889,85952.0,85949.0,0.0974]
[1741402087829,0.1889,85952.0,85950.0,0.13339882]
[1741402088432,0.1889,85952.0,85950.0,0.0754889]
[1741402089634,0.3608,85953.0,85950.0,0.0754889]
[1741402089635,0.00017455,85957.0,85956.0,0.1163711]
[1741402089831,0.3608,85970.0,85952.0,0.0581882]
[1741402089832,0.195,85962.0,85952.0,0.0581882]
[1741402090139,0.195,85962.0,85957.0,0.1163691]
[1741402090433,0.195,85962.0,85961.0,0.1163643]
[1741402090830,0.12630209,85962.0,85961.0,0.23817469]
[1741402091033,0.36097455,85970.0,85968.0,0.1163547]
[1741402091234,0.36097455,85970.0,85969.0,0.2048]
[1741402091431,0.36097455,85970.0,85969.0,0.38430573]
[1741402092140,0.36097455,85970.0,85969.0,0.26795223]
[1741402092934,0.36097455,85970.0,85969.0,0.12106215]
[1741402093232,0.47732675,85970.0,85969.0,0.12106215]
[1741402093434,0.1163565,85967.0,85961.0,0.12784015]
[1741402093641,0.3608,85962.0,85961.0,0.12784015]
[1741402093842,0.3608,85968.0,85959.0,0.0984]
[1741402094046,0.3608,85968.0,85961.0,0.22624015]
[1741402094237,0.3608,85968.0,85962.0,0.116363]
[1741402094438,0.3608,85968.0,85962.0,0.05845308]
[1741402094640,0.3608,85968.0,85963.0,0.23431581]
[1741402095035,0.3608,85968.0,85964.0,0.1163597]
[1741402095341,0.0987,85967.0,85966.0,0.1163576]
[1741402095541,0.0987,85967.0,85965.0,0.1163579]
[1741402095542,0.2150568,85967.0,85965.0,0.22359201]
[1741402095731,0.0987,85967.0,85966.0,0.12609201]
[1741402096139,0.1976,85967.0,85959.0,0.45632461]
[1741402096441,0.1976,85967.0,85960.0,0.24248776]
[1741402096843,0.1976,85967.0,85960.0,0.12612216]
[1741402097543,0.1976,85967.0,85960.0,0.06821224]
[1741402098839,0.1976,85967.0,85966.0,0.1163576]
[1741402099241,0.1976,85967.0,85966.0,0.2406372]
[1741402100549,0.1976,85967.0,85966.0,0.18272728]
[1741402100839,0.1976,85967.0,85966.0,0.1242796]
[1741402101345,0.1976,85967.0,85958.0,0.1002]
[1741402101546,0.1976,85967.0,85958.0,0.2034]
[1741402101746,0.1976,85967.0,85960.0,0.12484947]
[1741402101951,0.3608,85964.0,85960.0,0.12484947]
[1741402102240,0.1989,85963.0,85960.0,0.1032]
[1741402103643,0.1163671,85959.0,85958.0,0.1002]
[1741402103840,0.1163738,85954.0,85943.0,0.1051]
[1741402104238,0.1163738,85954.0,85951.0,0.69614247]
[1741402104445,0.05094696,85954.0,85951.0,0.69614247]
[1741402104645,0.1004,85954.0,85951.0,0.69614247]
[1741402105749,0.1004,85954.0,85952.0,0.62657309]
[1741402105943,0.1004,85954.0,85952.0,0.62721309]
[1741402106641,0.1004,85954.0,85952.0,0.56947772]
[1741402106840,0.1019,85953.0,85952.0,0.56883772]
[1741402108051,0.1019,85953.0,85951.0,0.1046]
[1741402108248,0.101,85952.0,85951.0,0.1046]
[1741402109355,0.101,85952.0,85951.0,0.2209779]
[1741402109547,0.1019,85953.0,85951.0,0.28433555]
[1741402109851,0.1019,85953.0,85952.0,0.1163765]
[1741402110047,0.101,85963.0,85961.0,0.116364]
[1741402110351,0.101,85963.0,85962.0,0.1044]
[1741402110548,0.101,85963.0,85962.0,0.22601647]
[1741402110853,0.101,85963.0,85962.0,0.34237947]
[1741402111151,0.3608,85964.0,85963.0,0.1163616]
[1741402111347,0.196,85969.0,85968.0,0.1163549]
[1741402111739,0.0959,85969.0,85968.0,0.24472239]
[1741402111943,0.07844588,85972.0,85971.0,0.1163508]
[1741402112149,0.07844588,85972.0,85971.0,0.4771508]
[1741402112451,0.07844588,85972.0,85971.0,0.60054427]
[1741402112650,0.3608,85985.0,85971.0,0.54276508]
[1741402112949,0.3608,85985.0,85975.0,0.140347]
[1741402113153,0.3608,85985.0,85975.0,0.2566921]
[1741402113348,0.3608,85985.0,85976.0,0.12488688]
[1741402113850,0.3608,85985.0,85977.0,0.0969]
[1741402114052,0.3608,85985.0,85978.0,0.1163411]
[1741402114352,0.3608,85985.0,85978.0,0.34282798]
[1741402115051,0.1012,85984.0,85978.0,0.22648688]
[1741402115278,0.1012,85984.0,85983.0,0.1163346]
[1741402115850,0.3608,85985.0,85983.0,0.19100031]
[1741402116356,0.3608,85985.0,85984.0,0.2042]
[1741402116751,0.3608,85985.0,85984.0,0.3351644]
[1741402118751,0.3608,85985.0,85984.0,0.27725448]
[1741402118944,0.4677,85985.0,85984.0,0.27725448]
[1741402120456,0.1069,85985.0,85984.0,0.27725448]
[1741402121654,0.1069,85985.0,85984.0,0.21934456]
[1741402124787,0.1069,85985.0,85984.0,0.16143464]
[1741402127866,0.1069,85985.0,85984.0,0.10352472]
[1741402130872,0.1069,85985.0,85984.0,0.0456148]
[1741402133860,0.1069,85985.0,85981.0,0.10404218]
[1741402134067,0.0981,85984.0,85981.0,0.10404218]
[1741402134268,0.0981,85984.0,85982.0,0.12421554]
[1741402134469,0.0988,85983.0,85982.0,0.12421554]
[1741402134669,0.0988,85983.0,85980.0,0.24885679]
[1741402134874,0.1028,85982.0,85981.0,0.13251839]
[1741402136775,0.1028,85982.0,85980.0,0.13149172]
[1741402136976,0.0977,85981.0,85978.0,0.1016]
[1741402137275,0.0977,85981.0,85979.0,0.13149172]
[1741402137472,0.1014,85980.0,85978.0,0.1016]
[1741402137776,0.1014,85980.0,85979.0,0.12673152]
[1741402137982,0.36144,85990.0,85979.0,0.12673152]
[1741402138274,0.1014,85986.0,85985.0,0.1163319]
[1741402138977,0.03600032,85986.0,85985.0,0.24762534]
[1741402139878,0.03600032,85986.0,85985.0,0.18971542]
[1741402140079,0.03600032,85986.0,85985.0,0.13129344]
[1741402140682,0.03600032,85986.0,85985.0,0.23609344]
[1741402142785,0.03600032,85986.0,85985.0,0.35242534]
[1741402142985,0.03600032,85986.0,85985.0,0.39681542]
[1741402144986,0.3608,86000.0,85985.0,0.39681542]
[1741402144987,0.3608,86000.0,85985.0,0.28048352]
[1741402145281,0.3608,86000.0,85990.0,0.501147]
[1741402145476,0.3608,86000.0,85994.0,0.116319]
[1741402145683,0.3608,86000.0,85995.0,0.2057]
[1741402145977,0.3608,86000.0,85995.0,0.39503575]
[1741402146177,0.3608,86000.0,85999.0,0.1163129]
[1741402146575,0.3608,86000.0,85999.0,0.25016764]
[1741402146780,0.3608,86000.0,85999.0,0.35836764]